[Event "44th Chess Olympiad Open 2022"]
[Site "Chennai"]
[Date "2022.08.05"]
[Round "7.79"]
[White "Elvis Havyarimana"]
[Black "Joel O. Ebiekuta"]
[Result "0-1"]
[WhiteElo "1724"]
[BlackElo "1848"]
[Annotator "NA RC"]
[PlyCount "94"]
[EventDate "2022.??.??"]
[TimeControl "60"]

1. d4 {[%emt 0:00:01]} Nf6 {[%emt 0:00:47]} 2. c4 {[%emt 0:00:09]} g6 {[%emt 0:
00:00]} 3. Nc3 {[%emt 0:00:09]} Bg7 {[%emt 0:00:12]} 4. e4 {[%emt 0:00:13]} d6
{[%emt 0:00:05]} 5. f4 {[%emt 0:00:15]} e6 {[%emt 0:05:44]} 6. Nf3 {[%emt 0:00:
00]} b6 {[%emt 0:03:43]} 7. Bd3 {[%emt 0:02:41]} Bb7 {[%emt 0:00:29]} 8. O-O {
[%emt 0:00:22]} O-O {[%emt 0:00:16]} 9. e5 {[%emt 0:00:43]} Ne8 {[%emt 0:01:30]
} 10. Be3 {[%emt 0:00:50]} Nd7 {[%emt 0:01:31]} 11. Qe1 {[%emt 0:08:24]} c5 {
[%emt 0:02:52]} 12. d5 {[%emt 0:00:56]} exd5 {[%emt 0:03:24]} 13. cxd5 {
[%emt 0:01:44]} dxe5 {[%emt 0:00:59]} 14. fxe5 {[%emt 0:00:25]} Nxe5 {[%emt 0:
00:00]} 15. Nxe5 {[%emt 0:00:30]} Bxe5 {[%emt 0:02:17]} 16. Bh6 {[%emt 0:00:34]
} Bd4+ {[%emt 0:00:42]} 17. Kh1 {[%emt 0:00:11]} Ng7 {[%emt 0:01:53]} 18. Rf3 {
[%emt 0:10:23]} Bxd5 {[%emt 0:09:23]} 19. Nxd5 {[%emt 0:00:36]} Qxd5 {[%emt 0:
00:00]} 20. Be4 {[%emt 0:00:25]} Qd7 {[%emt 0:01:52]} 21. Bxa8 {[%emt 0:02:31]}
Rxa8 {[%emt 0:02:29]} 22. Rd1 {[%emt 0:15:00]} Re8 {[%emt 0:02:09]} 23. Qd2 {
[%emt 0:06:28]} Qe6 {[%emt 0:00:53]} 24. b3 {[%emt 0:04:21]} Nf5 {[%emt 0:00:
00]} 25. Rdf1 {[%emt 0:04:46]} Nxh6 {[%emt 0:08:44]} 26. Qxh6 {[%emt 0:00:09]}
f5 {[%emt 0:00:41]} 27. h3 {[%emt 0:06:12]} Qe7 {[%emt 0:03:13]} 28. Qd2 {
[%emt 0:07:13]} Qh4 {[%emt 0:07:18]} 29. Qd3 {[%emt 0:07:45]} Re4 {[%emt 0:00:
00]} 30. Qc4+ {[%emt 0:01:13]} Kg7 {[%emt 0:01:20]} 31. Qd5 {[%emt 0:02:54]}
Re5 {[%emt 0:03:59]} 32. Qd7+ {[%emt 0:01:39]} Qe7 {[%emt 0:02:43]} 33. Qb5 {
[%emt 0:00:59]} Qb7 {[%emt 0:02:44]} 34. a4 {[%emt 0:00:43]} Qe7 {[%emt 0:00:
00]} 35. Qc4 {[%emt 0:06:38]} h5 {[%emt 0:01:56]} 36. Rd1 {[%emt 0:00:52]} Re4
{[%emt 0:04:59]} 37. Qd3 {[%emt 0:00:59]} Qf6 {[%emt 0:02:16]} 38. Rff1 {
[%emt 0:01:01]} Qe6 {[%emt 0:02:35]} 39. Qd2 {[%emt 0:02:53]} Qxb3 {[%emt 0:00:
00]} 40. a5 {[%emt 0:00:11]} Qe6 {[%emt 0:01:12]} 41. axb6 {[%emt 0:30:52]}
axb6 {[%emt 0:30:32]} 42. Rf3 {[%emt 0:00:22]} b5 {[%emt 0:02:45]} 43. Ra3 {
[%emt 0:00:30]} b4 {[%emt 0:01:14]} 44. Ra7+ {[%emt 0:00:29]} Kf6 {[%emt 0:00:
00]} 45. Qd3 {[%emt 0:01:37]} c4 {[%emt 0:01:29]} 46. Qg3 {[%emt 0:02:26]} h4 {
[%emt 0:01:18]} 47. Qc7 {[%emt 0:02:25]} Re1+ {[%emt 0:00:15]} 0-1

[Event "44th Chess Olympiad Open 2022"]
[Site "Chennai"]
[Date "2022.08.05"]
[Round "7.80"]
[White "Pereira, Sergio Murilo de Ar"]
[Black "Mohamed Ali Djama"]
[Result "1-0"]
[WhiteElo "2093"]
[BlackElo "1629"]
[Annotator "NA RC"]
[PlyCount "71"]
[EventDate "2022.??.??"]
[TimeControl "60"]

1. e4 {[%emt 0:01:59]} e5 {[%emt 0:00:05]} 2. Nf3 {[%emt 0:00:07]} Nc6 {
[%emt 0:00:08]} 3. Bc4 {[%emt 0:00:25]} Nf6 {[%emt 0:01:11]} 4. d3 {[%emt 0:00:
00]} Bc5 {[%emt 0:00:16]} 5. O-O {[%emt 0:00:38]} d6 {[%emt 0:00:08]} 6. c3 {
[%emt 0:00:41]} Bg4 {[%emt 0:00:19]} 7. b4 {[%emt 0:01:49]} Bb6 {[%emt 0:00:09]
} 8. h3 {[%emt 0:00:55]} h5 {[%emt 0:03:24]} 9. hxg4 {[%emt 0:12:52]} hxg4 {
[%emt 0:00:21]} 10. Ng5 {[%emt 0:00:12]} Qe7 {[%emt 0:14:55]} 11. Bxf7+ {
[%emt 0:04:56]} Qxf7 {[%emt 0:24:51]} 12. Nxf7 {[%emt 0:05:19]} Kxf7 {[%emt 0:
00:00]} 13. Be3 {[%emt 0:09:51]} Rh5 {[%emt 0:13:50]} 14. Re1 {[%emt 0:02:42]}
Rah8 {[%emt 0:03:01]} 15. Kf1 {[%emt 0:00:26]} Rh1+ {[%emt 0:03:57]} 16. Ke2 {
[%emt 0:00:08]} R1h2 {[%emt 0:00:02]} 17. Bxb6 {[%emt 0:04:31]} axb6 {[%emt 0:
00:00]} 18. Rg1 {[%emt 0:00:40]} d5 {[%emt 0:01:56]} 19. Nd2 {[%emt 0:00:56]}
Nh5 {[%emt 0:00:25]} 20. g3 {[%emt 0:03:47]} d4 {[%emt 0:01:30]} 21. b5 {
[%emt 0:01:37]} Ne7 {[%emt 0:01:27]} 22. cxd4 {[%emt 0:00:50]} Ng6 {[%emt 0:00:
00]} 23. Rc1 {[%emt 0:03:38]} Rf8 {[%emt 0:01:04]} 24. Qb3+ {[%emt 0:00:22]}
Ke8 {[%emt 0:00:11]} 25. Qe6+ {[%emt 0:02:23]} Kd8 {[%emt 0:03:59]} 26. Kd1 {
[%emt 0:01:16]} Rfxf2 {[%emt 0:00:25]} 27. Nc4 {[%emt 0:00:54]} Ngf4 {[%emt 0:
00:00]} 28. gxf4 {[%emt 0:02:17]} g3 {[%emt 0:00:35]} 29. Qd5+ {[%emt 0:02:16]}
Ke7 {[%emt 0:03:01]} 30. Qxe5+ {[%emt 0:06:22]} Kf8 {[%emt 0:00:20]} 31. f5 {
[%emt 0:05:23]} Nf4 {[%emt 0:01:22]} 32. f6 {[%emt 0:04:20]} gxf6 {[%emt 0:00:
00]} 33. Qxf6+ {[%emt 0:00:46]} Ke8 {[%emt 0:00:01]} 34. Nd6+ {[%emt 0:00:56]}
Kd7 {[%emt 0:00:50]} 35. Qf7+ {[%emt 0:00:16]} Kxd6 {[%emt 0:00:42]} 36. e5# {
[%emt 0:17:39]} 1-0

[Event "44th Chess Olympiad Open 2022"]
[Site "Chennai"]
[Date "2022.08.05"]
[Round "7.80"]
[White "Espirito Santo, Waldyr"]
[Black "Mohamed Ali Dima"]
[Result "1-0"]
[WhiteElo "1922"]
[BlackElo "1582"]
[Annotator "NA RC"]
[PlyCount "103"]
[EventDate "2022.??.??"]
[TimeControl "60"]

1. e4 {[%emt 0:00:08]} d5 {[%emt 0:00:01]} 2. exd5 {[%emt 0:01:05]} Nf6 {
[%emt 0:00:15]} 3. d4 {[%emt 0:01:13]} Nxd5 {[%emt 0:01:14]} 4. Bc4 {[%emt 0:
00:00]} Nc6 {[%emt 0:01:54]} 5. Ne2 {[%emt 0:00:50]} e6 {[%emt 0:01:58]} 6. O-O
{[%emt 0:00:57]} Bd6 {[%emt 0:00:17]} 7. Nd2 {[%emt 0:03:52]} O-O {[%emt 0:00:
00]} 8. Nf3 {[%emt 0:00:40]} Nce7 {[%emt 0:02:08]} 9. Bg5 {[%emt 0:01:57]} Qe8
{[%emt 0:01:04]} 10. Re1 {[%emt 0:00:43]} b5 {[%emt 0:00:22]} 11. Bd3 {[%emt 0:
00:00]} Bb7 {[%emt 0:01:11]} 12. c3 {[%emt 0:00:41]} Ng6 {[%emt 0:07:44]} 13.
Qc2 {[%emt 0:01:30]} f5 {[%emt 0:01:23]} 14. Ng3 {[%emt 0:04:21]} Nde7 {
[%emt 0:04:17]} 15. Rxe6 {[%emt 0:02:31]} Bxf3 {[%emt 0:00:47]} 16. gxf3 {
[%emt 0:00:08]} Qc6 {[%emt 0:02:20]} 17. Bxe7 {[%emt 0:02:01]} Nxe7 {[%emt 0:
00:00]} 18. Rae1 {[%emt 0:02:09]} Rae8 {[%emt 0:02:45]} 19. Qe2 {[%emt 0:00:36]
} a6 {[%emt 0:04:24]} 20. c4 {[%emt 0:08:57]} f4 {[%emt 0:07:51]} 21. Nf1 {
[%emt 0:03:16]} Rf6 {[%emt 0:01:20]} 22. c5 {[%emt 0:00:34]} Qd5 {[%emt 0:00:
00]} 23. Rxf6 {[%emt 0:01:40]} Qg5+ {[%emt 0:01:29]} 24. Kh1 {[%emt 0:00:17]}
gxf6 {[%emt 0:00:17]} 25. Nd2 {[%emt 0:00:50]} Kh8 {[%emt 0:02:45]} 26. cxd6 {
[%emt 0:01:58]} Rg8 {[%emt 0:00:29]} 27. Qf1 {[%emt 0:00:20]} Ng6 {[%emt 0:00:
00]} 28. Bxg6 {[%emt 0:01:08]} Qxg6 {[%emt 0:01:31]} 29. d7 {[%emt 0:01:35]}
Rd8 {[%emt 0:05:21]} 30. Re7 {[%emt 0:01:28]} c6 {[%emt 0:02:55]} 31. Qe1 {
[%emt 0:01:38]} Rg8 {[%emt 0:00:06]} 32. Qf1 {[%emt 0:00:17]} Qh5 {[%emt 0:00:
00]} 33. b4 {[%emt 0:01:47]} Qg6 {[%emt 0:00:27]} 34. a3 {[%emt 0:04:09]} Qh5 {
[%emt 0:00:02]} 35. Re8 {[%emt 0:03:27]} Rxe8 {[%emt 0:00:20]} 36. dxe8=Q+ {
[%emt 0:00:03]} Qxe8 {[%emt 0:00:01]} 37. Ne4 {[%emt 0:00:44]} Qe6 {[%emt 0:00:
00]} 38. Qg2 {[%emt 0:02:48]} Qb3 {[%emt 0:04:29]} 39. Qh3 {[%emt 0:02:44]}
Qd1+ {[%emt 0:04:48]} 40. Kg2 {[%emt 0:00:36]} Qxd4 {[%emt 0:04:01]} 41. Qh6 {
[%emt 0:30:53]} Qd8 {[%emt 0:33:16]} 42. Nxf6 {[%emt 0:01:43]} Qe7 {[%emt 0:00:
00]} 43. Qg5 {[%emt 0:00:55]} Qg7 {[%emt 0:00:24]} 44. Qxg7+ {[%emt 0:00:18]}
Kxg7 {[%emt 0:00:02]} 45. Nh5+ {[%emt 0:00:17]} Kf7 {[%emt 0:00:09]} 46. Nxf4 {
[%emt 0:00:14]} Kf6 {[%emt 0:00:37]} 47. Nd3 {[%emt 0:00:19]} Ke6 {[%emt 0:00:
00]} 48. Nc5+ {[%emt 0:00:16]} Kd5 {[%emt 0:00:05]} 49. Nxa6 {[%emt 0:00:15]}
Kc4 {[%emt 0:01:02]} 50. f4 {[%emt 0:00:31]} Kb3 {[%emt 0:00:04]} 51. f5 {
[%emt 0:00:12]} Kxa3 {[%emt 0:00:04]} 52. f6 {[%emt 0:00:20]} 1-0

[Event "44th Chess Olympiad Open 2022"]
[Site "Chennai"]
[Date "2022.08.05"]
[Round "7.82"]
[White "Masiala Mayuku, Eddy"]
[Black "Herrera, Adrian"]
[Result "0-1"]
[WhiteElo "1574"]
[BlackElo "1563"]
[Annotator "NA RC"]
[PlyCount "86"]
[EventDate "2022.??.??"]
[TimeControl "60"]

1. d4 {[%emt 0:00:13]} e6 {[%emt 0:00:12]} 2. g3 {[%emt 0:00:19]} Nf6 {[%emt 0:
00:00]} 3. Nf3 {[%emt 0:00:32]} c5 {[%emt 0:01:15]} 4. Bg2 {[%emt 0:01:15]}
cxd4 {[%emt 0:00:52]} 5. Qxd4 {[%emt 0:00:49]} Nc6 {[%emt 0:00:45]} 6. Qd1 {
[%emt 0:00:23]} d5 {[%emt 0:00:30]} 7. c3 {[%emt 0:00:19]} Bc5 {[%emt 0:01:17]}
8. e3 {[%emt 0:00:41]} O-O {[%emt 0:05:41]} 9. O-O {[%emt 0:00:14]} Qc7 {
[%emt 0:01:07]} 10. Re1 {[%emt 0:01:24]} e5 {[%emt 0:03:08]} 11. b4 {[%emt 0:
00:00]} Be7 {[%emt 0:00:54]} 12. Bb2 {[%emt 0:00:33]} e4 {[%emt 0:05:04]} 13.
Nd4 {[%emt 0:00:26]} Ne5 {[%emt 0:00:38]} 14. Qd2 {[%emt 0:01:16]} Nd3 {
[%emt 0:07:29]} 15. Rf1 {[%emt 0:00:24]} Nd7 {[%emt 0:06:39]} 16. a4 {[%emt 0:
00:00]} N7e5 {[%emt 0:02:45]} 17. Na3 {[%emt 0:00:32]} Bd7 {[%emt 0:03:45]} 18.
a5 {[%emt 0:01:37]} a6 {[%emt 0:00:58]} 19. f3 {[%emt 0:00:24]} f5 {[%emt 0:00:
00]} 20. f4 {[%emt 0:00:46]} Ng4 {[%emt 0:06:24]} 21. h3 {[%emt 0:03:28]} Nxe3
{[%emt 0:02:44]} 22. Qxe3 {[%emt 0:00:00]} Nxb2 {[%emt 0:00:06]} 23. Rac1 {
[%emt 0:00:01]} Nd3 {[%emt 0:01:42]} 24. Rc2 {[%emt 0:00:35]} b6 {[%emt 0:00:
00]} 25. axb6 {[%emt 0:01:09]} Qxb6 {[%emt 0:00:13]} 26. Rb1 {[%emt 0:00:42]}
Rfc8 {[%emt 0:02:35]} 27. Kh2 {[%emt 0:00:27]} a5 {[%emt 0:01:46]} 28. bxa5 {
[%emt 0:00:37]} Qxa5 {[%emt 0:00:26]} 29. Nab5 {[%emt 0:01:04]} Rab8 {[%emt 0:
00:00]} 30. Bf1 {[%emt 0:00:24]} Bxb5 {[%emt 0:01:04]} 31. Bxd3 {[%emt 0:01:20]
} Bxd3 {[%emt 0:00:16]} 32. Rxb8 {[%emt 0:00:36]} Rxb8 {[%emt 0:00:04]} 33. Rf2
{[%emt 0:01:15]} Bc5 {[%emt 0:01:38]} 34. g4 {[%emt 0:00:42]} Qxc3 {[%emt 0:00:
00]} 35. Qg3 {[%emt 0:01:03]} Qxd4 {[%emt 0:00:21]} 36. Rg2 {[%emt 0:00:16]}
Rb2 {[%emt 0:00:07]} 37. Rxb2 {[%emt 0:00:48]} Qxb2+ {[%emt 0:00:10]} 38. Qg2 {
[%emt 0:00:17]} Qxg2+ {[%emt 0:00:26]} 39. Kxg2 {[%emt 0:00:24]} e3 {[%emt 0:
00:00]} 40. gxf5 {[%emt 0:00:41]} e2 {[%emt 0:00:13]} 41. f6 {[%emt 0:30:12]}
e1=Q {[%emt 0:30:23]} 42. fxg7 {[%emt 0:00:33]} Be4+ {[%emt 0:00:12]} 43. Kh2 {
[%emt 0:00:26]} Bg1# {[%emt 0:00:10]} 0-1

[Event "44th Chess Olympiad Open 2022"]
[Site "Chennai"]
[Date "2022.08.05"]
[Round "7.83"]
[White "Kamara, Ansumana"]
[Black "Hlophe, Smilo"]
[Result "0-1"]
[WhiteElo "1896"]
[BlackElo "1731"]
[Annotator "NA RC"]
[PlyCount "74"]
[EventDate "2022.??.??"]
[TimeControl "60"]

1. e4 {[%emt 0:00:07]} e5 {[%emt 0:00:06]} 2. Nf3 {[%emt 0:00:07]} Nf6 {
[%emt 0:00:05]} 3. Nc3 {[%emt 0:00:20]} Nc6 {[%emt 0:00:32]} 4. Bb5 {[%emt 0:
00:00]} Bc5 {[%emt 0:00:10]} 5. O-O {[%emt 0:00:21]} O-O {[%emt 0:01:00]} 6. d3
{[%emt 0:00:25]} a6 {[%emt 0:02:13]} 7. Bxc6 {[%emt 0:02:04]} dxc6 {[%emt 0:00:
00]} 8. Nxe5 {[%emt 0:00:10]} Re8 {[%emt 0:00:15]} 9. Nf3 {[%emt 0:00:11]} Bg4
{[%emt 0:00:33]} 10. h3 {[%emt 0:00:44]} Bh5 {[%emt 0:00:06]} 11. Bg5 {[%emt 0:
00:00]} h6 {[%emt 0:00:09]} 12. Be3 {[%emt 0:04:24]} Bf8 {[%emt 0:01:01]} 13.
Re1 {[%emt 0:00:32]} c5 {[%emt 0:07:59]} 14. Ne2 {[%emt 0:00:58]} Bxf3 {
[%emt 0:00:15]} 15. gxf3 {[%emt 0:00:03]} Qd7 {[%emt 0:00:57]} 16. Kh2 {
[%emt 0:00:20]} Rad8 {[%emt 0:06:19]} 17. Rg1 {[%emt 0:00:16]} g6 {[%emt 0:00:
00]} 18. f4 {[%emt 0:02:08]} Kh7 {[%emt 0:00:21]} 19. Ng3 {[%emt 0:01:02]} c4 {
[%emt 0:00:31]} 20. e5 {[%emt 0:01:58]} Ng8 {[%emt 0:07:18]} 21. dxc4 {[%emt 0:
00:00]} Qe6 {[%emt 0:00:53]} 22. Qe2 {[%emt 0:00:27]} Rd7 {[%emt 0:00:21]} 23.
Rad1 {[%emt 0:00:18]} Red8 {[%emt 0:00:10]} 24. b3 {[%emt 0:00:24]} h5 {
[%emt 0:02:10]} 25. Rxd7 {[%emt 0:01:27]} Qxd7 {[%emt 0:00:18]} 26. Qf3 {
[%emt 0:07:01]} c6 {[%emt 0:00:52]} 27. f5 {[%emt 0:07:31]} Nh6 {[%emt 0:02:24]
} 28. e6 {[%emt 0:02:01]} Qe8 {[%emt 0:00:14]} 29. exf7 {[%emt 0:01:11]} Qxf7 {
[%emt 0:00:02]} 30. fxg6+ {[%emt 0:00:24]} Qxg6 {[%emt 0:00:08]} 31. Nxh5 {
[%emt 0:01:04]} Bd6+ {[%emt 0:00:34]} 32. Kh1 {[%emt 0:00:37]} Qf5 {[%emt 0:00:
00]} 33. Rg7+ {[%emt 0:05:17]} Kh8 {[%emt 0:00:12]} 34. Qxf5 {[%emt 0:00:10]}
Nxf5 {[%emt 0:00:10]} 35. Rxb7 {[%emt 0:01:38]} Be5 {[%emt 0:00:01]} 36. Rb6 {
[%emt 0:03:00]} Rd1+ {[%emt 0:00:23]} 37. Kg2 {[%emt 0:15:55]} Nh4# {[%emt 0:
00:00]} 0-1

[Event "44th Chess Olympiad Open 2022"]
[Site "Chennai"]
[Date "2022.08.05"]
[Round "7.83"]
[White "Lwebuga, Ronald"]
[Black "Dlamini Simphiwe"]
[Result "0-1"]
[WhiteElo "1818"]
[BlackElo "1569"]
[Annotator "NA RC"]
[PlyCount "182"]
[EventDate "2022.??.??"]
[TimeControl "60"]

1. d4 {[%emt 0:00:03]} c6 {[%emt 0:00:14]} 2. c4 {[%emt 0:00:07]} d5 {[%emt 0:
00:00]} 3. Nc3 {[%emt 0:00:44]} Nf6 {[%emt 0:00:16]} 4. Nf3 {[%emt 0:00:17]}
dxc4 {[%emt 0:03:20]} 5. a4 {[%emt 0:00:23]} Bf5 {[%emt 0:15:03]} 6. e3 {
[%emt 0:01:07]} e6 {[%emt 0:00:17]} 7. Bxc4 {[%emt 0:00:18]} Bb4 {[%emt 0:00:
00]} 8. Qb3 {[%emt 0:00:36]} a5 {[%emt 0:00:48]} 9. Bd2 {[%emt 0:00:47]} O-O {
[%emt 0:00:24]} 10. O-O {[%emt 0:00:08]} Qe7 {[%emt 0:05:38]} 11. Rfe1 {
[%emt 0:04:56]} Ne4 {[%emt 0:01:37]} 12. Nxe4 {[%emt 0:01:45]} Bxe4 {[%emt 0:
00:00]} 13. Bxb4 {[%emt 0:00:14]} Qxb4 {[%emt 0:01:46]} 14. Qxb4 {[%emt 0:00:
00]} axb4 {[%emt 0:00:06]} 15. Nd2 {[%emt 0:01:49]} Bg6 {[%emt 0:01:02]} 16. a5
{[%emt 0:01:42]} Rd8 {[%emt 0:01:59]} 17. Rec1 {[%emt 0:01:02]} Nd7 {[%emt 0:
00:00]} 18. Nb3 {[%emt 0:00:29]} Ra7 {[%emt 0:07:35]} 19. Ra4 {[%emt 0:00:22]}
b5 {[%emt 0:05:47]} 20. Rxb4 {[%emt 0:07:55]} bxc4 {[%emt 0:00:18]} 21. Rbxc4 {
[%emt 0:00:02]} Be4 {[%emt 0:14:59]} 22. Nd2 {[%emt 0:03:23]} Bd5 {[%emt 0:00:
00]} 23. Ra4 {[%emt 0:00:07]} f5 {[%emt 0:05:37]} 24. f3 {[%emt 0:00:18]} Nf6 {
[%emt 0:00:36]} 25. Re1 {[%emt 0:03:26]} e5 {[%emt 0:00:40]} 26. dxe5 {[%emt 0:
00:00]} Nd7 {[%emt 0:00:14]} 27. f4 {[%emt 0:00:53]} Nc5 {[%emt 0:01:50]} 28.
Ra3 {[%emt 0:03:13]} Rb8 {[%emt 0:07:19]} 29. Rb1 {[%emt 0:08:23]} Ne4 {
[%emt 0:00:25]} 30. Nf3 {[%emt 0:01:55]} Nc5 {[%emt 0:07:58]} 31. Nd2 {[%emt 0:
00:00]} Ne4 {[%emt 0:00:11]} 32. Nf3 {[%emt 0:00:51]} Nc5 {[%emt 0:00:08]} 33.
Nd2 {[%emt 0:00:28]} Nb3 {[%emt 0:00:07]} 34. Nxb3 {[%emt 0:04:04]} Rxb3 {
[%emt 0:00:28]} 35. Rxb3 {[%emt 0:02:13]} Bxb3 {[%emt 0:00:07]} 36. Ra1 {
[%emt 0:01:04]} Kf7 {[%emt 0:02:36]} 37. Kf1 {[%emt 0:01:21]} Ke6 {[%emt 0:00:
00]} 38. Ke1 {[%emt 0:02:28]} Rd7 {[%emt 0:01:35]} 39. Ra3 {[%emt 0:02:23]} Bc4
{[%emt 0:00:36]} 40. Rc3 {[%emt 0:03:38]} Bb5 {[%emt 0:00:08]} 41. b4 {[%emt 0:
00:00]} h5 {[%emt 0:33:25]} 42. Ra3 {[%emt 0:11:53]} h4 {[%emt 0:00:20]} 43.
Ra2 {[%emt 0:02:34]} Ba6 {[%emt 0:00:00]} 44. Rc2 {[%emt 0:00:00]} Bb5 {
[%emt 0:00:00]} 45. Ra2 {[%emt 0:00:00]} Ba6 {[%emt 0:00:00]} 46. Rc2 {[%emt 0:
00:00]} Bb5 {[%emt 0:00:00]} 47. Ra2 {[%emt 0:00:00]} Ke7 {[%emt 0:00:00]} 48.
Ra1 {[%emt 0:00:00]} Kf7 {[%emt 0:00:00]} 49. Ra2 {[%emt 0:00:00]} g6 {[%emt 0:
00:00]} 50. Ra1 {[%emt 0:00:00]} Ke6 {[%emt 0:00:00]} 51. Ra2 {[%emt 0:00:00]}
g5 {[%emt 0:00:00]} 52. Ra1 {[%emt 0:00:00]} gxf4 {[%emt 0:00:00]} 53. exf4 {
[%emt 0:00:00]} Bc4 {[%emt 0:00:00]} 54. Rc1 {[%emt 0:00:00]} Bb5 {[%emt 0:00:
00]} 55. Ra1 {[%emt 0:00:00]} Bc4 {[%emt 0:00:00]} 56. Rc1 {[%emt 0:05:31]} Bd5
{[%emt 0:00:00]} 57. g3 {[%emt 0:01:03]} hxg3 {[%emt 0:00:00]} 58. hxg3 {
[%emt 0:00:01]} Rh7 {[%emt 0:00:00]} 59. Rc3 {[%emt 0:09:57]} Rh1+ {[%emt 0:00:
00]} 60. Kd2 {[%emt 0:03:29]} Rb1 {[%emt 0:00:00]} 61. Ra3 {[%emt 0:02:33]}
Rxb4 {[%emt 0:00:00]} 62. a6 {[%emt 0:00:46]} Rb8 {[%emt 0:00:00]} 63. a7 {
[%emt 0:02:15]} Ra8 {[%emt 0:00:00]} 64. Kc3 {[%emt 0:00:31]} Kd7 {[%emt 0:00:
00]} 65. Kd4 {[%emt 0:02:24]} Kc7 {[%emt 0:00:00]} 66. Kc5 {[%emt 0:01:20]} Kb7
{[%emt 0:00:00]} 67. Kd6 {[%emt 0:00:46]} Rxa7 {[%emt 0:00:00]} 68. Rxa7+ {
[%emt 0:01:29]} Kxa7 {[%emt 0:00:00]} 69. e6 {[%emt 0:00:04]} Kb6 {[%emt 0:00:
00]} 70. Ke5 {[%emt 0:01:41]} Kc7 {[%emt 0:01:25]} 71. Kxf5 {[%emt 0:00:30]}
Kd6 {[%emt 0:00:18]} 72. e7 {[%emt 0:00:33]} Kxe7 {[%emt 0:00:18]} 73. Ke5 {
[%emt 0:00:04]} Bf7 {[%emt 0:04:04]} 74. f5 {[%emt 0:00:39]} c5 {[%emt 0:00:02]
} 75. g4 {[%emt 0:00:10]} c4 {[%emt 0:00:01]} 76. Kd4 {[%emt 0:00:34]} Kf6 {
[%emt 0:00:13]} 77. Ke4 {[%emt 0:01:12]} Kg5 {[%emt 0:00:15]} 78. Kf3 {[%emt 0:
00:00]} Bg8 {[%emt 0:00:43]} 79. Ke4 {[%emt 0:00:50]} Kxg4 {[%emt 0:00:20]} 80.
f6 {[%emt 0:00:15]} Kg5 {[%emt 0:00:10]} 81. Kd4 {[%emt 0:00:36]} Kxf6 {
[%emt 0:00:03]} 82. Ke4 {[%emt 0:00:17]} Ke6 {[%emt 0:01:32]} 83. Kd4 {[%emt 0:
00:00]} Kd6 {[%emt 0:00:13]} 84. Kc3 {[%emt 0:00:29]} Kc5 {[%emt 0:00:05]} 85.
Kc2 {[%emt 0:00:27]} Kd4 {[%emt 0:00:16]} 86. Kd2 {[%emt 0:01:11]} Bh7 {
[%emt 0:00:09]} 87. Kd1 {[%emt 0:00:26]} Kc3 {[%emt 0:00:11]} 88. Kc1 {[%emt 0:
00:00]} Bg8 {[%emt 0:00:10]} 89. Kb1 {[%emt 0:00:46]} Bd5 {[%emt 0:01:48]} 90.
Kc1 {[%emt 0:00:17]} Ba8 {[%emt 0:00:02]} 91. Kb1 {[%emt 0:00:16]} Kd2 {
[%emt 0:01:16]} 0-1

[Event "44th Chess Olympiad Open 2022"]
[Site "Chennai"]
[Date "2022.08.05"]
[Round "7.83"]
[White "Sihlongonyane, Sikhanyiso"]
[Black "Winston Gerald, Mansfield Thomas"]
[Result "1-0"]
[WhiteElo "1658"]
[BlackElo "1832"]
[Annotator "NA"]
[PlyCount "133"]
[EventDate "2022.??.??"]
[TimeControl "60"]

1. e4 {[%emt 0:00:05]} d6 {[%emt 0:00:13]} 2. d4 {[%emt 0:00:15]} Nf6 {[%emt 0:
00:00]} 3. Nc3 {[%emt 0:00:12]} c6 {[%emt 0:00:13]} 4. f4 {[%emt 0:00:31]} Qa5
{[%emt 0:00:17]} 5. Bd3 {[%emt 0:00:43]} Nbd7 {[%emt 0:00:54]} 6. Nf3 {[%emt 0:
00:00]} e5 {[%emt 0:00:19]} 7. h3 {[%emt 0:01:41]} Be7 {[%emt 0:03:19]} 8. Be3
{[%emt 0:01:37]} Qc7 {[%emt 0:01:45]} 9. O-O {[%emt 0:01:07]} a6 {[%emt 0:00:
00]} 10. Qe1 {[%emt 0:02:03]} b5 {[%emt 0:03:15]} 11. a3 {[%emt 0:00:52]} Bb7 {
[%emt 0:02:49]} 12. b4 {[%emt 0:06:27]} Nh5 {[%emt 0:10:45]} 13. Ne2 {[%emt 0:
00:00]} Nhf6 {[%emt 0:02:12]} 14. c3 {[%emt 0:05:03]} d5 {[%emt 0:02:05]} 15.
Nxe5 {[%emt 0:06:54]} dxe4 {[%emt 0:00:40]} 16. Bc2 {[%emt 0:02:48]} Nd5 {
[%emt 0:13:55]} 17. Ng3 {[%emt 0:12:35]} Bh4 {[%emt 0:01:43]} 18. Bxe4 {
[%emt 0:02:50]} N7f6 {[%emt 0:00:26]} 19. Bxd5 {[%emt 0:06:06]} cxd5 {[%emt 0:
00:00]} 20. Bf2 {[%emt 0:00:47]} O-O {[%emt 0:02:05]} 21. Qe3 {[%emt 0:10:28]}
Bxg3 {[%emt 0:03:19]} 22. Bxg3 {[%emt 0:00:42]} Ne4 {[%emt 0:01:51]} 23. Rfc1 {
[%emt 0:01:23]} Rfe8 {[%emt 0:00:00]} 24. Qd3 {[%emt 0:02:02]} Rac8 {[%emt 0:
00:00]} 25. Rc2 {[%emt 0:06:43]} f6 {[%emt 0:01:10]} 26. Ng4 {[%emt 0:00:12]}
Qc4 {[%emt 0:00:52]} 27. Qxc4 {[%emt 0:01:02]} Rxc4 {[%emt 0:00:10]} 28. Be1 {
[%emt 0:00:34]} Nd6 {[%emt 0:01:58]} 29. Rac1 {[%emt 0:02:53]} Bc8 {[%emt 0:00:
00]} 30. Nf2 {[%emt 0:02:51]} Bf5 {[%emt 0:00:27]} 31. Ra2 {[%emt 0:01:17]} Rc7
{[%emt 0:08:12]} 32. g4 {[%emt 0:01:50]} Rce7 {[%emt 0:00:29]} 33. Kf1 {
[%emt 0:02:51]} Bc8 {[%emt 0:02:53]} 34. Bd2 {[%emt 0:04:43]} Nc4 {[%emt 0:00:
00]} 35. f5 {[%emt 0:02:41]} g6 {[%emt 0:01:50]} 36. fxg6 {[%emt 0:00:12]} hxg6
{[%emt 0:00:11]} 37. Bf4 {[%emt 0:02:05]} g5 {[%emt 0:00:29]} 38. Bh2 {[%emt 0:
00:00]} Re3 {[%emt 0:01:33]} 39. a4 {[%emt 0:01:43]} bxa4 {[%emt 0:00:48]} 40.
Rxa4 {[%emt 0:00:27]} Nd2+ {[%emt 0:02:24]} 41. Kg2 {[%emt 0:31:19]} Re2 {
[%emt 0:30:14]} 42. Ra2 {[%emt 0:00:00]} Nc4 {[%emt 0:00:00]} 43. Rxe2 {
[%emt 0:00:00]} Rxe2 {[%emt 0:00:00]} 44. Kf1 {[%emt 0:00:00]} Ra2 {[%emt 0:00:
00]} 45. Bg3 {[%emt 0:00:00]} f5 {[%emt 0:00:00]} 46. gxf5 {[%emt 0:00:00]}
Bxf5 {[%emt 0:00:00]} 47. h4 {[%emt 0:00:00]} g4 {[%emt 0:00:00]} 48. Bf4 {
[%emt 0:00:00]} Nd2+ {[%emt 0:00:00]} 49. Bxd2 {[%emt 0:00:00]} Rxd2 {[%emt 0:
00:00]} 50. Kg2 {[%emt 0:00:00]} Re2 {[%emt 0:00:00]} 51. Ra1 {[%emt 0:00:00]}
Re3 {[%emt 0:00:00]} 52. Rxa6 {[%emt 0:00:00]} Rxc3 {[%emt 0:00:00]} 53. Nxg4 {
[%emt 0:00:00]} Kg7 {[%emt 0:00:00]} 54. Ne5 {[%emt 0:00:00]} Be4+ {[%emt 0:00:
00]} 55. Kh2 {[%emt 0:00:00]} Rb3 {[%emt 0:00:05]} 56. Rb6 {[%emt 0:00:00]} Bf5
{[%emt 0:02:35]} 57. Rb7+ {[%emt 0:01:34]} Kh6 {[%emt 0:01:13]} 58. Rb8 {
[%emt 0:00:34]} Rh3+ {[%emt 0:01:55]} 59. Kg2 {[%emt 0:00:05]} Rxh4 {[%emt 0:
00:00]} 60. Nc6 {[%emt 0:01:53]} Kg7 {[%emt 0:05:18]} 61. b5 {[%emt 0:02:10]}
Bd3 {[%emt 0:09:24]} 62. Kf3 {[%emt 0:00:03]} Rh1 {[%emt 0:02:24]} 63. Kf4 {
[%emt 0:00:31]} Re1 {[%emt 0:00:48]} 64. b6 {[%emt 0:01:29]} Bb5 {[%emt 0:00:
00]} 65. Rc8 {[%emt 0:01:35]} Re4+ {[%emt 0:01:24]} 66. Kf5 {[%emt 0:00:35]}
Bxc6 {[%emt 0:05:04]} 67. Rxc6 {[%emt 0:00:02]} 1-0